lending/lending_fUSD_20240610
["ID","MTS","AMOUNT","RATE_DAILY","PERIOD"]
[328981298,1718040645361,-500.0,0.00029897,4]
[328981300,1718040645372,-500.0,0.00029897,4]
[328981303,1718040645383,-500.0,0.00029897,4]
[328981305,1718040645394,-500.0,0.00029897,4]
[328981307,1718040645405,-373.58453152,0.00029897,4]
[328981309,1718040645417,-500.0,0.00029897,4]
[328981311,1718040645429,-500.0,0.00029897,4]
[328981313,1718040645440,-500.0,0.00029897,4]
[328981315,1718040645451,-500.0,0.00029897,4]
[328981317,1718040645462,-333.92777851,0.00029897,4]
[328981320,1718040645473,-500.0,0.00029897,4]
[328981322,1718040645486,-500.0,0.00029897,4]
[328981324,1718040645497,-500.0,0.00029897,4]
[328981326,1718040645511,-501.37003767,0.00029897,4]
[328981328,1718040645522,-500.0,0.00029897,4]
[328981330,1718040645533,-500.0,0.00029897,4]
[328981333,1718040645545,-536.19769862,0.00029897,2]
[328981335,1718040645557,-500.0,0.00029897,4]
[328981337,1718040645568,-500.0,0.00029897,4]
[328981339,1718040645579,-500.0,0.00029897,4]
[328981341,1718040645590,-1062.93,0.00029897,4]
[328981343,1718040645602,-1062.93,0.00029897,4]
[328981345,1718040645616,-500.0,0.00029897,4]
[328981347,1718040645626,-500.0,0.00029897,4]
[328981349,1718040645637,-500.0,0.00029897,4]
[328981352,1718040645650,-500.0,0.00029897,4]
[328981354,1718040645662,-500.0,0.00029897,4]
[328981356,1718040645673,-500.0,0.00029897,4]
[328981358,1718040645686,-500.0,0.00029897,4]
[328981360,1718040645698,-363.42150025,0.00029897,4]
[328981362,1718040645711,-500.0,0.00029897,4]
[328981365,1718040645721,-500.0,0.00029897,4]
[328981367,1718040645732,-500.0,0.00029897,4]
[328981369,1718040645743,-500.0,0.00029897,4]
[328981371,1718040645755,-500.0,0.00029897,4]
[328981373,1718040645766,-555.73761867,0.00029897,4]
[328981375,1718040645778,-500.0,0.00029897,4]
[328981377,1718040645789,-500.0,0.00029897,4]
[328981379,1718040645800,-500.0,0.00029897,4]
[328981380,1718040645811,-500.0,0.00029897,4]
[328981381,1718040645823,-500.0,0.00029897,4]
[328981382,1718040645835,-500.0,0.00029897,4]
[328981383,1718040645847,-500.0,0.00029897,4]
[328981384,1718040645858,-500.0,0.00029897,4]
[328981385,1718040645869,-500.0,0.00029897,4]
[328981386,1718040645880,-500.0,0.00029897,4]
[328981387,1718040645892,-500.0,0.00029897,4]
[328981388,1718040645904,-466.21113605,0.00029897,4]
[328981389,1718040645915,-500.0,0.00029897,4]
[328981390,1718040645926,-500.0,0.00029897,4]
[328981391,1718040645937,-500.0,0.00029897,4]
[328981392,1718040645948,-500.0,0.00029897,4]
[328981393,1718040645959,-261.48384158,0.00029897,4]
[328981394,1718040645971,-500.0,0.00029897,4]
[328981396,1718040645982,-500.0,0.00029897,4]
[328981398,1718040645992,-500.0,0.00029897,4]
[328981400,1718040646004,-500.0,0.00029897,4]
[328981402,1718040646015,-500.0,0.00029897,4]
[328981404,1718040646025,-664.89,0.00029897,4]
[328981406,1718040646044,-500.0,0.00029897,4]
[328981407,1718040646061,-500.0,0.00029897,4]
[328981409,1718040646072,-676.24,0.00029897,4]
[328981411,1718040646083,-500.0,0.00029897,4]
[328981413,1718040646094,-488.49416359,0.00029897,4]
[328981415,1718040646105,-500.0,0.00029897,4]
[328981417,1718040646117,-500.0,0.00029897,4]
[328981419,1718040646131,-500.0,0.00029897,4]
[328981421,1718040646142,-500.0,0.00029897,4]
[328981423,1718040646153,-500.0,0.00029897,4]
[328981424,1718040646164,-699.23,0.00029897,4]
[328981426,1718040646175,-699.23,0.00029897,4]
[328981428,1718040646186,-583.64,0.00029897,4]
[328981429,1718040646198,-2096.98,0.00029897,4]
[328981431,1718040646210,-500.0,0.00029897,4]
[328981433,1718040646222,-500.0,0.00029897,4]
[328981435,1718040646234,-500.0,0.00029897,4]
[328981437,1718040646245,-500.0,0.00029897,4]
[328981439,1718040646258,-500.0,0.00029897,4]
[328981441,1718040646269,-500.0,0.00029897,4]
[328981443,1718040646281,-500.0,0.00029897,4]
[328981460,1718040646292,-500.0,0.00029897,4]
[328981463,1718040646489,-500.0,0.00029897,4]
[328981465,1718040646499,-500.0,0.00029897,4]
[328981467,1718040646512,-500.0,0.00029897,4]
[328981469,1718040646523,-629.1,0.00029897,4]
[328981471,1718040646532,-500.0,0.00029897,4]
[328981473,1718040646542,-2101.27,0.00029897,4]
[328981474,1718040646551,-2101.27,0.00029897,4]
[328981476,1718040646562,-500.0,0.00029897,4]
[328981478,1718040646571,-2319.07,0.00029897,4]
[328981480,1718040646580,-2319.07,0.00029897,4]
[328981482,1718040646590,-500.0,0.00029897,4]
[328981484,1718040646602,-830.95,0.00029897,4]
[328981485,1718040646613,-1098.46,0.00029897,4]
[328981487,1718040646624,-500.0,0.00029897,4]
[328981489,1718040646634,-500.0,0.00029897,4]
[328981491,1718040646645,-545.5,0.00029897,4]
[328981493,1718040646655,-2213.63,0.00029897,4]
[328981495,1718040646666,-500.0,0.00029897,4]
[328981497,1718040646677,-500.0,0.00029897,4]
[328981498,1718040646688,-500.0,0.00029897,4]
[328981500,1718040646698,-1837.85,0.00029897,4]
[328981502,1718040646708,-1837.85,0.00029897,4]
[328981504,1718040646719,-500.0,0.00029897,4]
[328981506,1718040646729,-500.0,0.00029897,4]
[328981508,1718040646740,-500.0,0.00029897,4]
[328981510,1718040646751,-500.0,0.00029897,4]
[328981512,1718040646763,-500.0,0.00029897,4]
[328981514,1718040646773,-608.81,0.00029897,4]
[328981515,1718040646784,-360.16485015,0.00029897,4]
[328981517,1718040646795,-500.0,0.00029897,2]
[328981519,1718040646805,-500.0,0.00029897,4]
[328981521,1718040646815,-500.0,0.00029897,4]
[328981523,1718040646825,-503.05,0.00029898,4]
[328981525,1718040646836,-503.05,0.00029898,4]
[328981527,1718040646846,-500.0,0.00029898,4]
[328981529,1718040646856,-500.0,0.00029898,4]
[328981530,1718040646866,-500.0,0.00029898,4]
[328981532,1718040646876,-542.81315042,0.00029898,4]
[328981534,1718040646887,-500.0,0.00029898,4]
[328981536,1718040646898,-500.0,0.00029898,4]
[328981538,1718040646908,-500.0,0.00029898,4]
[328981540,1718040646918,-500.0,0.00029898,4]
[328981541,1718040646929,-500.0,0.00029898,4]
[328981543,1718040646940,-500.0,0.00029898,4]
[328981545,1718040646950,-500.0,0.00029898,4]
[328981547,1718040646961,-512.28758655,0.00029898,4]
[328981549,1718040646971,-500.0,0.00029898,4]
[328981551,1718040646983,-500.0,0.00029898,4]
[328981553,1718040646994,-500.0,0.00029898,4]
[328981554,1718040647005,-500.0,0.00029898,4]
[328981556,1718040647015,-358.18130121,0.00029898,4]
[328981558,1718040647026,-500.0,0.00029898,4]
[328981560,1718040647037,-500.0,0.00029898,4]
[328981562,1718040647047,-500.0,0.00029898,4]
[328981564,1718040647057,-500.0,0.00029898,4]
[328981565,1718040647068,-504.57994932,0.00029898,4]
[328981567,1718040647078,-500.0,0.00029898,4]
[328981569,1718040647089,-500.0,0.00029898,4]
[328981571,1718040647099,-533.2882989,0.00029898,4]
[328981573,1718040647109,-500.0,0.00029898,4]
[328981575,1718040647119,-500.0,0.00029898,4]
[328981577,1718040647131,-500.0,0.00029898,4]
[328981579,1718040647142,-500.0,0.00029898,4]
[328981581,1718040647152,-500.0,0.00029898,4]
[328981583,1718040647163,-173.80395674,0.00029898,4]
[328981584,1718040647173,-500.0,0.00029898,4]
[328981586,1718040647184,-383.41778843,0.00029898,4]
[328981588,1718040647194,-500.0,0.00029898,4]
[328981590,1718040647204,-500.0,0.00029898,4]
[328981592,1718040647215,-500.0,0.00029898,4]
[328981594,1718040647226,-500.0,0.00029898,4]
[328981596,1718040647237,-230.58535317,0.00029898,4]
[328981598,1718040647248,-513.76838547,0.00029898,4]
[328981600,1718040647260,-500.0,0.00029898,4]
[328981602,1718040647270,-500.0,0.00029898,4]
[328981604,1718040647280,-500.0,0.00029898,4]
[328981606,1718040647291,-500.0,0.00029898,4]
[328981608,1718040647302,-500.0,0.00029898,4]
[328981610,1718040647312,-500.0,0.00029898,4]
[328981612,1718040647322,-500.0,0.00029898,4]
[328981614,1718040647333,-513.61774851,0.00029898,4]
[328981616,1718040647343,-500.0,0.00029898,4]
[328981618,1718040647353,-238.04144699,0.00029898,4]
[328981620,1718040647363,-500.0,0.00029898,4]
[328981621,1718040647373,-517.86057871,0.00029898,4]
[328981622,1718040647383,-500.0,0.00029898,4]
[328981623,1718040647393,-500.0,0.00029898,4]
[328981624,1718040647403,-509.48351254,0.00029898,4]
[328981625,1718040647414,-500.0,0.00029898,4]
[328981626,1718040647424,-513.51626278,0.00029898,4]
[328981627,1718040647434,-508.16002416,0.00029898,4]
[328981628,1718040647445,-500.0,0.00029898,4]
[328981629,1718040647455,-500.0,0.00029898,4]
[328981630,1718040647465,-486.6774363,0.00029898,4]
[328981631,1718040647475,-500.0,0.00029898,4]
[328981632,1718040647486,-500.0,0.00029898,4]
[328981633,1718040647496,-500.0,0.00029898,4]
[328981634,1718040647506,-524.11578255,0.00029898,4]
[328981635,1718040647516,-500.0,0.00029898,4]
[328981636,1718040647526,-521.90369395,0.00029898,4]
[328981638,1718040647535,-509.68029346,0.00029898,4]
[328981640,1718040647545,-500.0,0.00029898,4]
[328981641,1718040647555,-325.78629961,0.00029898,4]
[328981643,1718040647565,-530.40161239,0.00029898,4]
[328981645,1718040647575,-503.50410566,0.00029898,2]
[328981647,1718040647584,-500.0,0.00029898,4]
[328981649,1718040647593,-515.41958246,0.00029898,4]
[328981651,1718040647607,-500.0,0.00029898,4]
[328981653,1718040647618,-500.0,0.00029898,4]
[328981655,1718040647628,-500.0,0.00029898,4]
[328981657,1718040647637,-500.0,0.00029898,4]
[328981659,1718040647649,-501.22808905,0.00029898,4]
[328981661,1718040647658,-516.94152196,0.00029898,4]
[328981663,1718040647667,-500.0,0.00029898,4]
[328981665,1718040647677,-515.48873871,0.00029898,4]
[328981668,1718040647689,-538.21599944,0.00029898,4]
[328981669,1718040647699,-500.0,0.00029898,4]
[328981672,1718040647708,-527.43862569,0.00029898,4]
[328981673,1718040647718,-506.18904191,0.00029898,4]
[328981676,1718040647728,-505.42787527,0.00029898,4]
[328981678,1718040647738,-511.00739057,0.00029898,4]
[328981680,1718040647748,-500.0,0.00029898,4]
[328981682,1718040647760,-523.84144347,0.00029898,4]
[328981684,1718040647769,-351.6107114,0.00029898,4]
[328981686,1718040647779,-500.0,0.00029898,4]
[328981688,1718040647788,-500.0,0.00029898,4]
[328981690,1718040647798,-634.35659407,0.00029898,4]
[328981692,1718040647808,-500.0,0.00029898,4]
[328981694,1718040647817,-523.03639186,0.00029898,4]
[328981696,1718040647828,-500.0,0.00029898,4]
[328981698,1718040647839,-526.33000423,0.00029898,4]
[328981700,1718040647848,-500.0,0.00029898,4]
[328981702,1718040647858,-509.43703347,0.00029898,4]
[328981704,1718040647868,-225.26641663,0.00029898,4]
[328981706,1718040647878,-511.04300106,0.00029898,4]
[328981708,1718040647887,-537.12989975,0.00029898,4]
[328981710,1718040647896,-500.0,0.00029898,4]
[328981712,1718040647906,-500.0,0.00029898,4]
[328981714,1718040647915,-500.0,0.00029898,4]
[328981716,1718040647925,-527.90772153,0.00029898,4]
[328981717,1718040647935,-500.0,0.00029898,4]
[328981719,1718040647945,-500.0,0.00029898,4]
[328981721,1718040647955,-483.67200056,0.00029898,4]
[328981723,1718040647965,-500.0,0.00029898,4]
[328981725,1718040647974,-500.0,0.00029898,4]
[328981728,1718040647985,-500.0,0.00029898,4]
[328981730,1718040647995,-533.62990826,0.00029898,4]
[328981732,1718040648006,-500.0,0.00029898,4]
[328981734,1718040648015,-500.0,0.00029898,4]
[328981736,1718040648025,-500.0,0.00029898,4]
[328981738,1718040648035,-516.01745656,0.00029898,4]
[328981740,1718040648045,-516.03222227,0.00029898,4]
[328981742,1718040648055,-509.8913984,0.00029898,4]
[328981744,1718040648065,-500.0,0.00029898,4]
[328981746,1718040648076,-500.0,0.00029898,4]
[328981748,1718040648086,-518.58881374,0.00029898,4]
[328981750,1718040648096,-508.39295717,0.00029898,4]
[328981752,1718040648106,-511.24074706,0.00029898,4]
[328981754,1718040648115,-500.0,0.00029898,4]
[328981756,1718040648126,-262.9180647,0.00029898,4]
[328981758,1718040648137,-541.53857691,0.00029898,4]
[328981760,1718040648147,-510.43745527,0.00029898,4]
[328981762,1718040648157,-500.0,0.00029898,4]
[328981764,1718040648167,-500.0,0.00029898,4]
[328981766,1718040648178,-508.22311972,0.00029898,4]
[328981768,1718040648188,-500.0,0.00029898,4]
[328981770,1718040648198,-500.0,0.00029898,4]
[328981772,1718040648208,-500.0,0.00029898,4]
[328981774,1718040648218,-500.0,0.00029898,4]
[328981776,1718040648229,-500.0,0.00029898,4]
[328981778,1718040648239,-500.0,0.00029898,4]
[328981780,1718040648249,-500.0,0.00029898,4]
[328981782,1718040648260,-504.30161486,0.00029898,4]
[328981784,1718040648270,-500.0,0.00029898,4]
[328981786,1718040648280,-500.0,0.00029898,4]
[328981788,1718040648291,-505.78799086,0.00029898,4]
[328981790,1718040648301,-512.07222353,0.00029898,4]
[328981792,1718040648310,-500.0,0.00029898,4]
[328981794,1718040648320,-500.0,0.00029898,4]
[328981796,1718040648330,-329.88970992,0.00029898,4]
[328981797,1718040648340,-500.0,0.00029898,4]
[328981799,1718040648350,-500.0,0.00029898,4]
[328981801,1718040648360,-500.0,0.00029898,4]
[328981803,1718040648371,-500.0,0.00029898,4]
[328981805,1718040648380,-500.0,0.00029898,4]
[328981807,1718040648391,-500.0,0.00029898,4]
[328981809,1718040648400,-500.0,0.00029898,4]
[328981811,1718040648410,-500.0,0.00029898,4]
[328981813,1718040648420,-500.0,0.00029898,4]
[328981815,1718040648430,-500.0,0.00029898,4]
[328981817,1718040648441,-500.0,0.00029898,4]
[328981819,1718040648451,-526.77608312,0.00029898,4]
[328981821,1718040648461,-500.0,0.00029898,4]
[328981823,1718040648471,-500.0,0.00029898,4]
[328981825,1718040648481,-515.19387702,0.00029898,4]
[328981827,1718040648491,-500.0,0.00029898,4]
[328981829,1718040648502,-500.0,0.00029898,4]
[328981831,1718040648514,-513.35554871,0.00029898,4]
[328981833,1718040648524,-500.0,0.00029898,4]
[328981835,1718040648534,-500.0,0.00029898,4]
[328981837,1718040648543,-500.0,0.00029898,4]
[328981839,1718040648553,-500.0,0.00029898,4]
[328981841,1718040648563,-500.0,0.00029898,4]
[328981843,1718040648573,-500.0,0.00029898,4]
[328981845,1718040648583,-500.0,0.00029898,4]
[328981847,1718040648593,-500.0,0.00029898,4]
[328981849,1718040648606,-500.0,0.00029898,4]
[328981851,1718040648616,-500.0,0.00029898,4]
[328981853,1718040648627,-500.0,0.00029898,4]
[328981855,1718040648638,-500.0,0.00029898,4]
[328981857,1718040648648,-500.0,0.00029898,4]
[328981859,1718040648658,-500.0,0.00029898,4]
[328981861,1718040648668,-509.72054259,0.00029898,4]
[328981863,1718040648679,-500.0,0.00029898,4]
[328981865,1718040648689,-500.0,0.00029898,4]
[328981867,1718040648699,-500.0,0.00029898,4]
[328981869,1718040648708,-500.0,0.00029898,4]
[328981871,1718040648718,-500.0,0.00029898,4]
[328981873,1718040648728,-508.5196585,0.00029898,4]
[328981875,1718040648738,-500.0,0.00029898,4]
[328981877,1718040648748,-517.98025252,0.00029898,4]
[328981879,1718040648759,-500.0,0.00029898,4]
[328981881,1718040648769,-514.61817963,0.00029898,4]
[328981882,1718040648779,-500.0,0.00029898,4]
[328981884,1718040648788,-500.0,0.00029898,4]
[328981886,1718040648799,-500.0,0.00029898,4]
[328981889,1718040648809,-503.16475207,0.00029898,4]
[328981891,1718040648818,-500.0,0.00029898,4]
[328981893,1718040648827,-500.0,0.00029898,4]
[328981895,1718040648837,-591.6515575,0.00029898,4]
[328981897,1718040648847,-500.0,0.00029898,4]
[328981899,1718040648857,-500.0,0.00029898,4]
[328981901,1718040648867,-500.0,0.00029898,4]
[328981903,1718040648876,-500.0,0.00029898,4]
[328981905,1718040648886,-500.0,0.00029898,4]
[328981907,1718040648896,-524.27745602,0.00029898,4]
[328981909,1718040648905,-507.47595521,0.00029898,4]
[328981911,1718040648915,-523.0972243,0.00029898,4]
[328981913,1718040648924,-511.35676235,0.00029898,4]
[328981915,1718040648934,-500.0,0.00029898,4]
[328981917,1718040648944,-522.03529034,0.00029898,4]
[328981919,1718040648953,-511.03020442,0.00029898,4]
[328981921,1718040648963,-500.0,0.00029898,4]
[328981923,1718040648972,-500.0,0.00029898,4]
[328981924,1718040648981,-554.58271803,0.00029898,4]
[328981926,1718040648990,-500.0,0.00029898,4]
[328981928,1718040649000,-516.52814831,0.00029898,4]
[328981930,1718040649012,-500.0,0.00029898,4]
[328981932,1718040649021,-500.0,0.00029898,4]
[328981934,1718040649030,-500.0,0.00029898,4]
[328981936,1718040649040,-500.0,0.00029898,4]
[328981939,1718040649050,-500.0,0.00029898,4]
[328981940,1718040649060,-500.0,0.00029898,4]
[328981942,1718040649069,-500.0,0.00029898,4]
[328981944,1718040649079,-519.24319854,0.00029898,4]
[328981946,1718040649088,-500.0,0.00029898,4]
[328981948,1718040649098,-500.0,0.00029898,4]
[328981950,1718040649108,-216.9810632,0.00029898,4]
[328981952,1718040649118,-500.0,0.00029898,4]
[328981954,1718040649129,-500.0,0.00029898,4]
[328981956,1718040649140,-322.30681831,0.00029898,4]
[328981958,1718040649150,-500.0,0.00029898,4]
[328981960,1718040649160,-500.0,0.00029898,4]
[328981962,1718040649169,-500.0,0.00029898,4]
[328981964,1718040649179,-398.61006994,0.00029898,4]
[328981966,1718040649189,-500.0,0.00029898,4]
[328981968,1718040649199,-500.0,0.00029898,4]
[328981970,1718040649208,-513.66861365,0.00029898,4]
[328981972,1718040649218,-526.12524734,0.00029898,4]
[328981974,1718040649227,-514.771578,0.00029898,4]
[328981976,1718040649237,-340.03919699,0.00029898,4]
[328981978,1718040649247,-500.0,0.00029898,2]
[328981980,1718040649259,-467.60250748,0.00029898,2]
[328981982,1718040649268,-500.0,0.00029898,2]
[328981984,1718040649278,-500.0,0.00029898,2]
[328981986,1718040649289,-500.0,0.00029898,4]
[328981988,1718040649299,-283.42360632,0.00029898,4]
[328981990,1718040649309,-500.0,0.00029898,2]
[328981992,1718040649319,-1042.251,0.00029898,2]
[328981994,1718040649330,-3440.3735,0.00029898,2]
[328981996,1718040649340,-2133.8101,0.00029898,2]
[328981998,1718040649350,-287.1139,0.00029898,2]
[328982000,1718040649360,-18919.2166,0.00029898,2]
[328982002,1718040649370,-71863.4906,0.00029898,2]
[328982004,1718040649380,-214.0,0.00029899,2]
[328982006,1718040649390,-8980.42685341,0.00029899,2]
[328982008,1718040649401,-4000.0,0.00029899,2]
[328982010,1718040649411,-500.0,0.00029899,4]
[328982012,1718040649421,-583.64,0.00029899,4]
[328982014,1718040649430,-500.0,0.00029899,4]
[328982016,1718040649440,-500.0,0.00029899,4]
[328982018,1718040649450,-480.6489185,0.00029899,2]
[328982020,1718040649460,-500.0,0.00029899,4]
[328982022,1718040649471,-263.42284993,0.00029899,2]
[328982024,1718040649481,-500.0,0.00029899,4]
[328982026,1718040649490,-8980.42685337,0.00029899,2]
[328982028,1718040649500,-8980.42685337,0.00029899,2]
[328982030,1718040649511,-8980.42685337,0.00029899,2]
[328982032,1718040649521,-8980.42685337,0.00029899,2]
[328982034,1718040649530,-8980.42685337,0.00029899,2]
[328982036,1718040649540,-480.64891849,0.000299,2]
[328982038,1718040649550,-8980.42685337,0.000299,2]
[328982040,1718040649560,-8980.42685337,0.000299,2]
[328982042,1718040649569,-8980.42685337,0.000299,2]
[328982044,1718040649579,-8980.42685337,0.000299,2]
[328982046,1718040649588,-8980.42685337,0.000299,2]
[328982048,1718040649601,-8980.42685337,0.000299,2]
[328982050,1718040649612,-174.23448122,0.000299,2]
[328982052,1718040649621,-2000.0,0.000299,2]
[328982054,1718040649631,-440.65221745,0.000299,2]
[328982056,1718040649641,-164.14976813,0.000299,2]
[328982058,1718040649651,-480.64891849,0.000299,2]
[328982060,1718040649662,-171.059961,0.000299,2]
[328982062,1718040649673,-2000.0,0.0002991,2]
[328982064,1718040649687,-2163.018465,0.0002992,2]
[328982066,1718040649698,-162.46757151,0.00029932,2]
[328982068,1718040649708,-153.33956031,0.00029962,2]
[328982070,1718040649717,-502.56111217,0.0002999,2]
[328982072,1718040649727,-500.0,0.00029993,4]
[328982074,1718040649737,-500.0,0.00029993,4]
[328982076,1718040649746,-500.0,0.00029993,4]
[328982078,1718040649757,-500.0,0.00029993,4]
[328982093,1718040649889,-500.0,0.00029993,4]
[328982095,1718040649900,-2213.63,0.00029993,4]
[328982097,1718040649910,-500.0,0.00029993,4]
[328982099,1718040649921,-500.0,0.00029993,4]
[328982101,1718040649931,-500.0,0.00029993,4]
[328982103,1718040649941,-500.0,0.00029993,2]
[328982105,1718040649950,-500.0,0.00029993,4]
[328982107,1718040649961,-5147.85965856,0.00029993,2]
[328982109,1718040649971,-500.0,0.00029994,4]
[328982111,1718040649981,-500.0,0.00029994,4]
[328982113,1718040649991,-500.0,0.00029994,4]
[328982115,1718040650001,-500.0,0.00029994,4]
[328982117,1718040650011,-500.0,0.00029994,4]
[328982119,1718040650021,-500.0,0.00029994,4]
[328982121,1718040650030,-500.0,0.00029994,4]
[328982123,1718040650040,-500.0,0.00029994,4]
[328982125,1718040650050,-500.0,0.00029994,4]
[328982126,1718040650060,-500.0,0.00029994,4]
[328982127,1718040650070,-500.0,0.00029994,4]
[328982128,1718040650081,-500.0,0.00029994,4]
[328982129,1718040650091,-500.0,0.00029994,4]
[328982130,1718040650101,-664.89,0.00029994,4]
[328982131,1718040650112,-676.24,0.00029994,4]
[328982132,1718040650124,-500.0,0.00029994,4]
[328982133,1718040650134,-2096.98,0.00029994,4]
[328982134,1718040650144,-500.0,0.00029994,4]
[328982135,1718040650155,-629.1,0.00029994,4]
[328982136,1718040650166,-830.95,0.00029994,4]
[328982137,1718040650176,-545.5,0.00029994,4]
[328982138,1718040650187,-500.0,0.00029994,4]
[328982139,1718040650197,-500.0,0.00029994,4]
[328982140,1718040650208,-608.81,0.00029994,4]
[328982141,1718040650218,-155.49037544,0.00029995,2]
[328982142,1718040650228,-548.67965103,0.00029995,4]
[328982143,1718040650238,-500.0,0.00029995,4]
[328982144,1718040650248,-500.0,0.00029995,4]
[328982145,1718040650259,-500.0,0.00029995,4]
[328982146,1718040650269,-500.0,0.00029995,4]
[328982147,1718040650279,-500.0,0.00029995,4]
[328982148,1718040650289,-500.0,0.00029995,4]
[328982149,1718040650299,-500.0,0.00029995,4]
[328982150,1718040650309,-500.0,0.00029995,4]
[328982151,1718040650319,-500.0,0.00029995,4]
[328982152,1718040650329,-1522.44,0.00029995,4]
[328982153,1718040650339,-500.0,0.00029995,4]
[328982154,1718040650349,-535.16424841,0.00029995,4]
[328982155,1718040650359,-500.0,0.00029995,4]
[328982156,1718040650370,-500.0,0.00029995,4]
[328982157,1718040650380,-500.0,0.00029995,4]
[328982159,1718040650390,-500.0,0.00029995,4]
[328982161,1718040650400,-500.0,0.00029995,4]
[328982163,1718040650410,-500.0,0.00029995,4]
[328982164,1718040650420,-500.0,0.00029995,4]
[328982166,1718040650431,-1062.93,0.00029995,4]
[328982169,1718040650442,-500.0,0.00029995,4]
[328982171,1718040650452,-500.0,0.00029995,4]
[328982173,1718040650462,-500.0,0.00029995,4]
[328982175,1718040650473,-500.0,0.00029995,4]
[328982177,1718040650484,-500.0,0.00029995,4]
[328982179,1718040650494,-500.0,0.00029995,4]
[328982181,1718040650504,-500.0,0.00029995,4]
[328982183,1718040650515,-500.0,0.00029995,4]
[328982185,1718040650525,-500.0,0.00029995,4]
[328982187,1718040650535,-500.0,0.00029995,4]
[328982189,1718040650545,-500.0,0.00029995,4]
[328982191,1718040650556,-500.0,0.00029995,4]
[328982192,1718040650566,-500.0,0.00029995,4]
[328982194,1718040650575,-699.23,0.00029995,4]
[328982196,1718040650585,-583.64,0.00029995,4]
[328982198,1718040650597,-500.0,0.00029995,4]
[328982200,1718040650612,-500.0,0.00029995,4]
[328982202,1718040650621,-500.0,0.00029995,4]
[328982204,1718040650631,-500.0,0.00029995,4]
[328982206,1718040650642,-2101.27,0.00029995,4]
[328982208,1718040650652,-500.0,0.00029995,4]
[328982210,1718040650662,-2319.07,0.00029995,4]
[328982212,1718040650672,-1098.46,0.00029995,4]
[328982214,1718040650684,-500.0,0.00029995,4]
[328982216,1718040650694,-244.10328796,0.00029995,4]
[328982217,1718040650705,-1837.85,0.00029995,4]
[328982218,1718040650715,-500.0,0.00029995,4]
[328982220,1718040650725,-500.0,0.00029995,4]
[328982222,1718040650735,-155.0,0.00029996,2]
[328982224,1718040650745,-4760.50425002,0.00029996,2]
[328982226,1718040650755,-540.31525626,0.00029996,2]
[328982228,1718040650766,-155.82954055,0.00029996,2]
[328982230,1718040650778,-155.0,0.00029996,2]
[328982232,1718040650787,-155.0,0.00029996,2]
[328982234,1718040650797,-269.83407313,0.00029996,2]
[328982236,1718040650807,-155.0,0.00029996,2]
[328982238,1718040650817,-3099.09729572,0.00029996,2]
[328982240,1718040650827,-3318.60750499,0.00029996,2]
[328982242,1718040650837,-156.74317224,0.00029996,2]
[328982243,1718040650847,-43742.24134507,0.00029996,2]
[328982244,1718040650856,-319.28728946,0.00029996,2]
[328982245,1718040650867,-287.51976629,0.00029996,2]
[328982246,1718040650877,-155.0,0.00029996,2]